bitfinex/quotes_BTCUSD_20230108
["timestamp","ask_amount","ask_price","bid_price","bid_amount"]
[1673157653279,0.65377501,16955.0,16954.0,1.7774405]
[1673157653748,0.65377501,16955.0,16954.0,1.7778042]
[1673157654005,0.65377501,16955.0,16954.0,1.7774405]
[1673157660778,0.830756,16955.0,16954.0,1.7774405]
[1673157661045,0.65377501,16955.0,16954.0,1.7774405]
[1673157664488,0.65377501,16955.0,16954.0,1.2839865]
[1673157664748,1.09364001,16955.0,16954.0,1.2839865]
[1673157665018,1.53622974,16955.0,16954.0,1.2839865]
[1673157665489,1.09364001,16955.0,16954.0,1.2839865]
[1673157665968,1.09364001,16955.0,16954.0,1.7774405]
[1673157666574,1.09364001,16955.0,16954.0,1.1876095]
[1673157666831,1.53622974,16955.0,16954.0,0.6941555]
[1673157667093,0.65371253,16955.0,16954.0,0.6941555]
[1673157667589,1.09630226,16955.0,16954.0,0.6941555]
[1673157667854,1.09357753,16955.0,16954.0,0.6941555]
[1673157668107,1.53616726,16955.0,16954.0,0.6941555]
[1673157668565,1.27069851,16955.0,16954.0,0.6941555]
[1673157668827,0.83083351,16955.0,16954.0,0.6941555]
[1673157669093,1.09630092,16955.0,16954.0,0.6941555]
[1673157669354,1.09630092,16955.0,16954.0,1.1876095]
[1673157669608,0.65371119,16955.0,16954.0,0.6941555]
[1673157669862,0.83083351,16955.0,16954.0,1.1876095]
[1673157670656,0.88433839,16955.0,16954.0,1.1876095]
[1673157671943,0.88433839,16955.0,16954.0,0.6941555]
[1673157672391,0.83083351,16955.0,16954.0,1.1876095]
[1673157672648,0.88434704,16955.0,16954.0,1.1876095]
[1673157673499,0.83083351,16955.0,16954.0,1.1876095]
[1673157673770,1.09629698,16955.0,16954.0,1.1876095]
[1673157674388,0.83083351,16955.0,16954.0,1.1876095]
[1673157674608,1.0963097,16955.0,16954.0,1.1876095]
[1673157674859,0.65371997,16955.0,16954.0,1.1876095]
[1673157675363,1.0963097,16955.0,16954.0,1.1876095]
[1673157676651,0.83083351,16955.0,16954.0,1.1876095]
[1673157677297,0.883803,16955.0,16954.0,1.1876095]
[1673157678470,0.883803,16955.0,16954.0,0.6941555]
[1673157678737,1.323668,16955.0,16954.0,0.6941555]
[1673157679740,0.883803,16955.0,16954.0,0.6941555]
[1673157680430,0.883803,16955.0,16954.0,1.1876095]
[1673157681978,0.883803,16955.0,16954.0,0.6941555]
[1673157684451,0.52959819,16955.0,16954.0,0.6941555]
[1673157685448,0.88360889,16955.0,16954.0,0.6941555]
[1673157685743,0.52959819,16955.0,16954.0,0.6941555]
[1673157686754,0.883597,16955.0,16954.0,0.6941555]
[1673157688343,1.323462,16955.0,16954.0,0.6941555]
[1673157689599,1.323462,16955.0,16954.0,1.1876095]
[1673157689816,0.883597,16955.0,16954.0,1.1876095]
[1673157690795,0.883597,16955.0,16954.0,0.6941555]
[1673157691045,1.323462,16955.0,16954.0,0.6941555]
[1673157692583,0.883597,16955.0,16954.0,0.6941555]
[1673157692838,0.883597,16955.0,16954.0,1.1876095]
[1673157697538,0.883597,16955.0,16954.0,1.1867395]
[1673157700311,0.52959819,16955.0,16954.0,1.1867395]
[1673157700557,0.88363156,16955.0,16954.0,1.1867395]
[1673157705451,0.52959819,16955.0,16954.0,1.1867395]
[1673157705724,0.52953819,16955.0,16954.0,1.1867395]
[1673157706808,0.96940319,16955.0,16954.0,1.1867395]
[1673157708782,0.52953819,16955.0,16954.0,1.1867395]
[1673157709812,0.96940319,16955.0,16954.0,1.1867395]
[1673157711169,0.52953819,16955.0,16954.0,1.1867395]
[1673157714646,0.96940319,16955.0,16954.0,1.1867395]
[1673157717543,0.52953819,16955.0,16954.0,1.1867395]
[1673157719773,0.08694846,16955.0,16954.0,0.6932855]
[1673157720047,0.52681346,16955.0,16954.0,0.6932855]
[1673157721169,0.52681346,16955.0,16954.0,0.1173272]
[1673157722912,0.08694846,16955.0,16954.0,0.1173272]
[1673157725616,0.52956274,16955.0,16954.0,0.6107812]
[1673157725837,0.52956274,16955.0,16954.0,0.1173272]
[1673157726316,1.02956274,16955.0,16954.0,0.11726497]
[1673157726780,0.52956274,16955.0,16954.0,0.11726497]
[1673157739389,0.52956274,16955.0,16954.0,0.61071897]
[1673157740930,0.52956274,16955.0,16954.0,0.11726497]
[1673157742432,0.52956274,16955.0,16954.0,0.61071897]
[1673157745059,0.52956274,16955.0,16954.0,0.11726497]
[1673157746080,0.52956274,16955.0,16954.0,0.61071897]
[1673157747275,0.52956274,16955.0,16954.0,0.11726497]
[1673157753856,0.52956274,16955.0,16954.0,0.61071897]
[1673157754993,0.52956274,16955.0,16954.0,0.70709597]
[1673157755494,0.52956274,16955.0,16954.0,1.20054997]
[1673157756458,0.52956274,16955.0,16954.0,1.80816997]
[1673157757276,0.52956274,16955.0,16954.0,1.31471597]
[1673157757538,0.08694846,16955.0,16954.0,0.11716376]
[1673157757777,0.58694846,16955.0,16954.0,0.11716376]
[1673157758548,0.08694846,16955.0,16954.0,0.72478376]
[1673157758968,0.08694846,16955.0,16954.0,0.11716376]
[1673157769516,0.08694846,16955.0,16954.0,0.61061776]
[1673157769770,0.08694846,16955.0,16954.0,0.11716376]
[1673157770994,0.52941615,16955.0,16954.0,0.11716376]
[1673157771524,0.08694846,16955.0,16954.0,0.11716376]
[1673157778912,0.58694846,16955.0,16954.0,0.11707067]
[1673157779146,1.02681346,16955.0,16954.0,0.11707067]
[1673157783453,0.52681346,16955.0,16954.0,0.11707067]
[1673157788719,0.08694846,16955.0,16954.0,0.11707067]
[1673157789234,0.52681346,16955.0,16954.0,0.11707067]
[1673157796334,1.05817064,16955.0,16954.0,0.11707067]
[1673157798938,1.05809118,16955.0,16954.0,0.11707067]
[1673157812671,0.61822618,16955.0,16954.0,0.11707067]
[1673157814085,1.05809118,16955.0,16954.0,0.11707067]
[1673157814335,0.61822618,16955.0,16954.0,0.11707067]
[1673157814582,1.05809118,16955.0,16954.0,0.11707067]
[1673157821229,0.61822618,16955.0,16954.0,0.11707067]
[1673157821789,1.05809118,16955.0,16954.0,0.11707067]
[1673157822354,1.05809118,16955.0,16954.0,0.11695088]
[1673157823598,0.61822618,16955.0,16954.0,0.11695088]
[1673157823850,1.05809118,16955.0,16954.0,0.11695088]
[1673157825593,0.61822618,16955.0,16954.0,0.11695088]
[1673157826098,1.05809118,16955.0,16954.0,0.11695088]
[1673157827599,1.55139105,16955.0,16954.0,0.11695088]
[1673157827865,1.05809118,16955.0,16954.0,0.11695088]
[1673157829128,0.61822618,16955.0,16954.0,0.11695088]
[1673157829386,1.05809118,16955.0,16954.0,0.11695088]
[1673157830119,0.61822618,16955.0,16954.0,0.11695088]
[1673157830374,1.05809118,16955.0,16954.0,0.11695088]
[1673157831164,1.05809118,16955.0,16954.0,0.11799197]
[1673157831959,1.55128844,16955.0,16954.0,0.11695088]
[1673157832217,1.05809118,16955.0,16954.0,0.11695088]
[1673157833221,1.05809118,16955.0,16954.0,0.11799197]
[1673157833489,1.5512371,16955.0,16954.0,0.11695088]
[1673157834693,1.05809118,16955.0,16954.0,0.11799197]
[1673157834950,1.05809118,16955.0,16954.0,0.11695088]
[1673157836946,1.05809118,16955.0,16954.0,0.11799197]
[1673157837678,1.05809118,16955.0,16954.0,0.11695088]
[1673157837922,1.55139117,16955.0,16954.0,0.11799197]
[1673157838146,1.05809118,16955.0,16954.0,0.11695088]
[1673157839248,1.05809118,16955.0,16954.0,0.11799197]
[1673157842650,1.05809118,16955.0,16954.0,0.11695088]
[1673157845266,1.55139123,16955.0,16954.0,0.11687379]
[1673157845509,1.05809118,16955.0,16954.0,0.11687379]
[1673157846705,1.55134001,16955.0,16954.0,0.11687379]
[1673157847182,1.05809118,16955.0,16954.0,0.11687379]
[1673157848148,0.61822618,16955.0,16954.0,0.11687379]
[1673157849764,1.05809118,16955.0,16954.0,0.11687379]
[1673157850511,1.05809118,16955.0,16954.0,0.11694311]
[1673157851878,0.61822618,16955.0,16954.0,0.11694311]
[1673157852687,1.05809118,16955.0,16954.0,0.11694311]
[1673157852903,1.05809118,16955.0,16954.0,0.11687379]
[1673157854188,1.05809118,16955.0,16954.0,0.11694311]
[1673157854189,0.61822618,16955.0,16954.0,0.11694311]
[1673157866591,0.61822618,16955.0,16954.0,0.11687379]
[1673157866811,0.61322618,16955.0,16954.0,0.11687379]
[1673157870265,0.61322618,16955.0,16954.0,0.11694311]
[1673157873454,0.61322618,16955.0,16954.0,0.11687379]
[1673157873806,0.61322618,16955.0,16954.0,0.11694311]
[1673157882133,0.61322618,16955.0,16954.0,0.11687379]
[1673157883407,0.58632667,16955.0,16954.0,0.11687379]
[1673157884468,0.61389191,16955.0,16954.0,0.11687379]
[1673157885524,0.61389191,16955.0,16954.0,0.11888376]
[1673157887990,0.61389191,16955.0,16954.0,0.11687379]
[1673157888251,0.61389191,16955.0,16954.0,0.11888376]
[1673157888480,0.61389191,16955.0,16954.0,0.11687379]
[1673157890056,0.61389191,16955.0,16954.0,0.11680812]
[1673157893021,0.61389191,16955.0,16954.0,0.11881809]
[1673157894509,0.61389191,16955.0,16954.0,0.11680812]
[1673157894954,0.56092242,16955.0,16954.0,0.11680812]
[1673157895774,0.56092242,16955.0,16954.0,0.11690862]
[1673157896831,0.56092242,16955.0,16954.0,0.11680812]
[1673157900197,1.00078742,16955.0,16954.0,0.11680812]
[1673157900704,1.00078742,16955.0,16954.0,0.11881809]
[1673157900961,0.56092242,16955.0,16954.0,0.11881809]
[1673157901480,0.55441442,16955.0,16954.0,0.11881809]
[1673157903198,1.14421042,16955.0,16954.0,0.11690862]
[1673157903447,1.14421042,16955.0,16954.0,0.11680812]
[1673157905379,1.14421042,16955.0,16954.0,0.11690862]
[1673157906394,1.14421042,16955.0,16954.0,0.11680812]
[1673157906912,1.14421042,16955.0,16954.0,0.11881809]
[1673157909955,1.14421042,16955.0,16954.0,0.11680812]
[1673157910219,1.58407542,16955.0,16954.0,0.11680812]
[1673157911711,1.14421042,16955.0,16954.0,0.11680812]
[1673157911964,1.58407542,16955.0,16954.0,0.11680812]
[1673157912205,1.14421042,16955.0,16954.0,0.11680812]
[1673157912448,1.58407542,16955.0,16954.0,0.11680812]
[1673157913455,1.14421042,16955.0,16954.0,0.11680812]
[1673157914456,1.58407542,16955.0,16954.0,0.11680812]
[1673157914708,1.14421042,16955.0,16954.0,0.11680812]
[1673157916082,1.14421042,16955.0,16954.0,0.1169086]
[1673157916311,1.14421042,16955.0,16954.0,0.11680812]
[1673157917166,1.58407542,16955.0,16954.0,0.11680812]
[1673157917425,1.14421042,16955.0,16954.0,0.11680812]
[1673157917948,1.14421042,16955.0,16954.0,0.1169086]
[1673157918190,1.14421042,16955.0,16954.0,0.11680812]
[1673157922539,1.58407542,16955.0,16954.0,0.11680812]
[1673157922798,1.14421042,16955.0,16954.0,0.11670023]
[1673157929133,1.14421042,16955.0,16954.0,0.11680071]
[1673157929386,1.14421042,16955.0,16954.0,0.11670023]
[1673157931107,1.1441146,16955.0,16954.0,0.11680071]
[1673157931355,1.1441146,16955.0,16954.0,0.11670023]
[1673157932101,1.5839796,16955.0,16954.0,0.11670023]
[1673157935306,1.1441146,16955.0,16954.0,0.11680071]
[1673157936048,1.1441146,16955.0,16954.0,0.11670023]
[1673157936274,1.1441146,16955.0,16954.0,0.11680071]
[1673157936510,1.1441146,16955.0,16954.0,0.11670023]
[1673157939396,1.5839796,16955.0,16954.0,0.11670023]
[1673157940228,1.1441146,16955.0,16954.0,0.11680071]
[1673157940485,1.1441146,16955.0,16954.0,0.11670023]
[1673157941330,1.5839796,16955.0,16954.0,0.11670023]
[1673157942439,1.1441146,16955.0,16954.0,0.11670023]
[1673157944353,1.1441146,16955.0,16954.0,0.11680071]
[1673157944594,1.1441146,16955.0,16954.0,0.11670023]
[1673157945120,1.5839796,16955.0,16954.0,0.11670023]
[1673157946756,1.5839796,16955.0,16954.0,0.11680071]
[1673157947023,1.5839796,16955.0,16954.0,0.11670023]
[1673157947271,1.1441146,16955.0,16954.0,0.11670023]
[1673157947765,1.70040328,16955.0,16954.0,0.11670023]
[1673157948012,2.14026827,16955.0,16954.0,0.11670023]
[1673157948515,1.70040327,16955.0,16954.0,0.00270023]
[1673157948763,1.7002993,16955.0,16954.0,0.01270023]
[1673157948980,1.23915724,16955.0,16954.0,0.01270023]
[1673157950026,1.73245527,16955.0,16954.0,0.01270023]
[1673157953511,1.73245527,16955.0,16954.0,0.01262107]
[1673157954301,2.17232027,16955.0,16954.0,0.01262107]
[1673157955563,1.73245527,16955.0,16954.0,0.01262107]
[1673157965718,1.70045527,16955.0,16954.0,0.00262107]
[1673157966235,1.73245527,16955.0,16954.0,0.01362107]
[1673157968816,1.23915724,16955.0,16954.0,0.01362107]
[1673157972036,1.73240389,16955.0,16954.0,0.01362107]
[1673157973302,1.23915724,16955.0,16954.0,0.01362107]
[1673157974326,1.77014277,16955.0,16954.0,0.01362107]
[1673157975203,1.23915724,16955.0,16954.0,0.01362107]
[1673157975726,1.23915724,16955.0,16954.0,0.01372155]
[1673157975970,1.77015587,16955.0,16954.0,0.01372155]
[1673157976487,1.77015587,16955.0,16954.0,0.01362107]
[1673157976958,1.77015587,16955.0,16954.0,0.01350696]
[1673157979715,1.23915724,16955.0,16954.0,0.01350696]
[1673157995882,1.83684522,16955.0,16954.0,0.01350696]
[1673157997332,1.23915724,16955.0,16954.0,0.01338709]
[1673157998036,1.83684522,16955.0,16954.0,0.01338709]
[1673157998632,2.33029922,16955.0,16954.0,0.01338709]
[1673157998888,2.77016422,16955.0,16954.0,0.01338709]
[1673157999885,2.33029922,16955.0,16954.0,0.01338709]
[1673158000631,1.83684522,16955.0,16954.0,0.01338709]
[1673158000870,1.23915724,16955.0,16954.0,0.01338709]
[1673158001092,1.83684522,16955.0,16954.0,0.01338709]
[1673158001585,1.23915724,16955.0,16954.0,0.01338709]
[1673158001812,1.83684522,16955.0,16954.0,0.01338709]
[1673158002033,2.33029922,16955.0,16954.0,0.01338709]
[1673158002255,2.77016422,16955.0,16954.0,0.01338709]
[1673158003902,2.33029922,16955.0,16954.0,0.01338709]
[1673158004127,1.83684522,16955.0,16954.0,0.01338709]
[1673158007822,1.23915724,16955.0,16954.0,0.01338709]
[1673158008309,1.23915724,16955.0,16954.0,0.62100709]
[1673158009025,1.23915724,16955.0,16954.0,0.01338709]
[1673158009513,1.23907586,16955.0,16954.0,0.62100709]
[1673158011627,1.23907586,16955.0,16954.0,0.61600709]
[1673158012125,1.23907586,16955.0,16954.0,0.61607319]
[1673158012899,1.77021286,16955.0,16954.0,0.61600709]
[1673158013151,1.23907586,16955.0,16954.0,0.00838709]
[1673158013580,1.23907586,16955.0,16954.0,0.61600709]
[1673158013844,1.23907586,16955.0,16954.0,0.61607319]
[1673158014104,1.23907586,16955.0,16954.0,0.61600709]
[1673158014594,1.23907586,16955.0,16954.0,0.00838709]
[1673158014849,1.23907586,16955.0,16954.0,0.00845319]
[1673158015097,1.23907586,16955.0,16954.0,0.61600709]
[1673158015851,1.23907586,16955.0,16954.0,0.00838709]
[1673158021432,1.23494486,16955.0,16954.0,0.00838709]
[1673158022621,1.23494486,16955.0,16954.0,0.00845319]
[1673158022889,1.23494486,16955.0,16954.0,0.00838709]
[1673158030165,1.23494486,16955.0,16954.0,0.61600709]
[1673158031170,1.23494486,16955.0,16954.0,0.00838709]
[1673158031437,1.23494486,16955.0,16954.0,0.00845319]
[1673158031985,1.23494486,16955.0,16954.0,0.00838709]
[1673158033235,1.23494486,16955.0,16954.0,0.00845319]
[1673158033481,1.23494486,16955.0,16954.0,0.00838709]
[1673158036876,1.23494486,16955.0,16954.0,0.00845319]
[1673158037606,1.23494486,16955.0,16954.0,0.00838709]
[1673158041418,1.23494486,16955.0,16954.0,0.00845319]
[1673158041663,1.23494486,16955.0,16954.0,0.61607319]
[1673158042546,1.23494486,16955.0,16954.0,0.61600709]
[1673158043088,1.23494486,16955.0,16954.0,0.6159441]
[1673158044445,1.23494486,16955.0,16954.0,0.6160102]
[1673158044865,1.23494486,16955.0,16954.0,0.6159441]
[1673158047185,1.23494486,16955.0,16954.0,0.0083241]
[1673158049018,1.23494486,16955.0,16954.0,0.6160102]
[1673158049345,1.23494486,16955.0,16954.0,0.6159441]
[1673158049593,1.23494486,16955.0,16954.0,0.0083241]
[1673158049594,1.83263284,16955.0,16954.0,0.0083241]
[1673158049836,2.32608684,16955.0,16954.0,0.0083241]
[1673158050096,2.76595184,16955.0,16954.0,0.0083241]
[1673158051837,2.27249784,16955.0,16954.0,0.0083241]
[1673158052048,1.83263284,16955.0,16954.0,0.0083241]
[1673158053555,1.83263284,16955.0,16954.0,0.00964642]
[1673158053812,1.83263284,16955.0,16954.0,0.0083241]
[1673158057572,2.27249784,16955.0,16954.0,0.0083241]
[1673158058883,1.83263284,16955.0,16954.0,0.00964642]
[1673158059104,1.83263284,16955.0,16954.0,0.0083241]
[1673158059369,2.27249784,16955.0,16954.0,0.0083241]
[1673158060564,1.83263284,16955.0,16954.0,0.0083241]
[1673158063237,1.23494486,16955.0,16954.0,0.0083241]
[1673158064228,1.23494486,16955.0,16954.0,0.00964642]
[1673158064476,1.23494486,16955.0,16954.0,0.0083241]
[1673158067530,1.23494486,16955.0,16954.0,0.00823412]
[1673158067531,1.67480986,16955.0,16954.0,0.00823412]
[1673158070785,1.23494486,16955.0,16954.0,0.00823412]
[1673158071533,1.211592,16955.0,16954.0,0.00823412]
[1673158072310,1.211592,16955.0,16954.0,0.00830022]
[1673158072586,1.2349613,16955.0,16954.0,0.00830022]
[1673158072859,1.2349613,16955.0,16954.0,0.00823412]
[1673158073119,1.2349613,16955.0,16954.0,0.00830022]
[1673158073348,1.2349613,16955.0,16954.0,0.00823412]
[1673158076678,1.2349613,16955.0,16954.0,0.00830022]
[1673158076976,1.2349613,16955.0,16954.0,0.00823412]
[1673158078015,1.2349613,16955.0,16954.0,0.00830022]
[1673158078522,1.2349613,16955.0,16954.0,0.00823412]
[1673158079556,1.2349613,16955.0,16954.0,0.00830022]
[1673158079807,1.2349613,16955.0,16954.0,1.59841177]
[1673158079808,0.6451653,16955.0,16954.0,1.59841177]
[1673158080125,0.6451653,16955.0,16954.0,1.16311577]
[1673158080126,1.17627997,16955.0,16954.0,1.16311577]
[1673158080356,1.17627997,16955.0,16954.0,0.00823412]
[1673158080840,1.17627997,16955.0,16954.0,0.44319902]
[1673158081117,1.17627997,16955.0,16954.0,0.00823412]
[1673158083420,1.17627997,16955.0,16954.0,0.4433837]
[1673158083674,1.17627997,16955.0,16954.0,0.00823412]
[1673158083675,0.58648397,16955.0,16954.0,0.00823412]
[1673158084177,0.58648397,16955.0,16954.0,0.44333502]
[1673158084896,0.58648397,16955.0,16954.0,0.44337137]
[1673158085145,0.58648397,16955.0,16954.0,0.00835988]
[1673158085410,0.58648397,16955.0,16954.0,0.00823412]
[1673158086675,0.58648397,16955.0,16954.0,0.00835988]
[1673158086930,0.58648397,16955.0,16954.0,0.00823412]
[1673158087695,0.58648397,16955.0,16954.0,0.00835988]
[1673158088729,0.58648397,16955.0,16954.0,0.00827222]
[1673158089205,0.58648397,16955.0,16954.0,0.44320801]
[1673158089461,0.0553693,16955.0,16954.0,0.44320801]
[1673158091249,0.0553693,16955.0,16954.0,0.44315673]
[1673158091506,0.0553693,16955.0,16954.0,0.00814646]
[1673158091752,0.09891241,16955.0,16954.0,0.00814646]
[1673158092014,0.62975949,16955.0,16954.0,0.00814646]
[1673158092272,0.09891241,16955.0,16954.0,0.00814646]
[1673158093070,0.62972444,16955.0,16954.0,0.00814646]
[1673158093340,0.09891241,16955.0,16954.0,0.00814646]
[1673158093593,0.09891241,16955.0,16954.0,0.00821256]
[1673158094141,0.09891241,16955.0,16954.0,0.00814646]
[1673158094349,0.09891241,16955.0,16954.0,0.44320811]
[1673158095359,0.09891241,16955.0,16954.0,0.4431569]
[1673158095601,0.09891241,16955.0,16954.0,0.00814646]
[1673158096591,0.62972444,16955.0,16954.0,0.00814646]
[1673158099791,0.62972444,16955.0,16954.0,0.00821256]
[1673158101823,0.62972444,16955.0,16954.0,0.00814646]
[1673158103120,0.62972444,16955.0,16954.0,0.00821256]
[1673158104306,0.62972444,16955.0,16954.0,0.00814646]
[1673158108084,0.62972444,16955.0,16954.0,0.00946878]
[1673158108324,0.62972444,16955.0,16954.0,0.00814646]
[1673158109856,1.06969826,16955.0,16954.0,0.00814646]
[1673158110107,0.62983326,16955.0,16954.0,0.00814646]
[1673158110406,0.62983326,16955.0,16954.0,0.00803493]
[1673158111634,0.60646396,16955.0,16954.0,0.00803493]
[1673158112659,0.63037484,16955.0,16954.0,0.00803493]
[1673158118275,0.09945399,16955.0,16954.0,0.00803493]
[1673158119508,0.6304812,16955.0,16954.0,0.00803493]
[1673158119748,0.09945399,16955.0,16954.0,0.00803493]
[1673158122490,0.63048627,16955.0,16954.0,0.00810103]
[1673158122744,0.63048627,16955.0,16954.0,0.00803493]
[1673158123488,0.09945399,16955.0,16954.0,0.00803493]
[1673158123733,0.63047448,16955.0,16954.0,0.00803493]
[1673158123977,0.63047461,16955.0,16954.0,0.00803493]
[1673158126015,0.63047461,16955.0,16954.0,0.00810103]
[1673158126274,0.63047461,16955.0,16954.0,0.00803493]
[1673158129638,0.63047461,16955.0,16954.0,0.00810103]
[1673158130920,0.63047461,16955.0,16954.0,0.00803493]
[1673158131803,0.63047461,16955.0,16954.0,0.00810103]
[1673158132045,0.63047461,16955.0,16954.0,0.00803493]
[1673158132807,0.63047461,16955.0,16954.0,0.00810103]
[1673158133377,0.63047461,16955.0,16954.0,0.00803493]
[1673158134298,0.63047461,16955.0,16954.0,0.00795976]
[1673158136270,0.63047461,16955.0,16954.0,0.4435428]
[1673158136535,0.63047461,16955.0,16954.0,0.44344057]
[1673158137300,0.63047461,16955.0,16954.0,0.44337447]
[1673158138760,0.63047461,16955.0,16954.0,0.00795976]
[1673158139263,0.63047461,16955.0,16954.0,0.44335039]
[1673158140099,0.63047461,16955.0,16954.0,0.00795976]
[1673158143667,0.63047461,16955.0,16954.0,0.00808552]
[1673158143914,0.63047461,16955.0,16954.0,0.00795976]
[1673158144506,0.63047461,16955.0,16954.0,0.44338227]
[1673158144823,0.09945399,16955.0,16954.0,1.05100227]
[1673158146776,0.09945399,16955.0,16954.0,0.44338227]
[1673158147033,0.09945399,16955.0,16954.0,1.05100227]
[1673158147289,0.09945399,16955.0,16954.0,0.44338227]
[1673158147541,0.09945399,16955.0,16954.0,1.05100227]
[1673158148540,0.49830671,16955.0,16954.0,1.05100227]
[1673158148751,0.54184982,16955.0,16954.0,0.44338227]
[1673158149799,0.09945399,16955.0,16954.0,0.44325651]
[1673158150056,0.09945399,16955.0,16954.0,1.05087651]
[1673158150575,0.09945399,16955.0,16954.0,0.44325651]
[1673158151123,0.09945399,16955.0,16954.0,1.05087651]
[1673158151898,0.07554311,16955.0,16954.0,1.05087651]
[1673158152141,0.07554311,16955.0,16954.0,0.44325651]
[1673158152416,0.07554311,16955.0,16954.0,1.05087651]
[1673158152659,0.032,16955.0,16954.0,1.05087651]
[1673158152884,0.47432271,16955.0,16954.0,1.05087651]
[1673158153113,0.51786582,16955.0,16954.0,0.44325651]
[1673158153333,0.51786582,16955.0,16954.0,0.44529175]
[1673158153824,0.51786582,16955.0,16954.0,1.03308751]
[1673158154074,0.07554311,16955.0,16954.0,1.03308751]
[1673158154337,0.07554311,16955.0,16954.0,1.64070751]
[1673158154603,0.07554311,16955.0,16954.0,1.05087651]
[1673158154826,0.07554311,16955.0,16954.0,0.44325651]
[1673158155308,0.07554311,16955.0,16954.0,0.44314754]
[1673158156170,0.07554311,16955.0,16954.0,0.44307095]
[1673158156424,0.57554311,16955.0,16954.0,0.44300903]
[1673158156673,0.10298787,16955.0,16954.0,0.44300903]
[1673158157190,0.10298787,16955.0,16954.0,0.44311078]
[1673158157714,0.07554311,16955.0,16954.0,0.44311078]
[1673158158231,0.57554311,16955.0,16954.0,0.4405231]
[1673158158485,0.07554311,16955.0,16954.0,0.00539724]
[1673158158740,0.07554311,16955.0,16954.0,0.44044257]
[1673158159985,0.07554311,16955.0,16954.0,0.00539724]
[1673158160473,0.10298787,16955.0,16954.0,0.44067572]
[1673158160950,0.10298787,16955.0,16954.0,0.44067579]
[1673158161178,0.10298787,16955.0,16954.0,0.44057404]
[1673158161573,0.07554311,16955.0,16954.0,0.44057404]
[1673158162486,0.07554311,16955.0,16954.0,0.00539724]
[1673158162992,0.07554311,16955.0,16954.0,0.44052277]
[1673158163500,0.07554311,16955.0,16954.0,0.00539724]
[1673158164900,0.07554311,16955.0,16954.0,0.00669555]
[1673158165385,0.07554311,16955.0,16954.0,0.44170744]
[1673158165657,0.07554311,16955.0,16954.0,0.44040913]
[1673158168955,0.07554311,16955.0,16954.0,0.44038938]
[1673158169703,0.07554311,16955.0,16954.0,0.44044056]
[1673158169947,0.07554311,16955.0,16954.0,0.00546214]
[1673158170204,0.07554311,16955.0,16954.0,0.00539724]
[1673158170704,0.10182865,16955.0,16954.0,0.44055664]
[1673158170999,0.10182865,16955.0,16954.0,1.04817664]
[1673158172380,0.10182865,16955.0,16954.0,0.44055664]
[1673158172634,0.07554311,16955.0,16954.0,0.44049174]
[1673158173505,0.07554311,16955.0,16954.0,0.44061522]
[1673158173756,0.09876918,16955.0,16954.0,0.44061522]
[1673158174475,0.07554311,16955.0,16954.0,0.44061522]
[1673158175938,0.07554311,16955.0,16954.0,1.04823522]
[1673158176195,0.07554311,16955.0,16954.0,0.44061522]
[1673158176483,0.07554311,16955.0,16954.0,1.04823522]
[1673158177471,0.07554311,16955.0,16954.0,0.44061522]
[1673158177975,0.07554311,16955.0,16954.0,1.04823522]
[1673158178510,0.07554311,16955.0,16954.0,0.44061522]
[1673158179077,0.07554311,16955.0,16954.0,1.63806622]
[1673158180527,0.07554311,16955.0,16954.0,1.63794274]
[1673158181050,0.07554311,16955.0,16954.0,1.63786195]
[1673158181592,0.09876918,16955.0,16954.0,1.63786195]
[1673158184442,0.09876918,16955.0,16954.0,1.63798543]
[1673158185949,0.6297898,16955.0,16954.0,1.63786195]
[1673158186207,0.6297898,16955.0,16954.0,0.59514745]
[1673158187207,0.6297898,16955.0,16954.0,0.59527093]
[1673158187449,0.6297898,16955.0,16954.0,0.59514745]
[1673158188180,0.6297898,16955.0,16954.0,0.59644576]
[1673158188431,0.6297898,16955.0,16954.0,0.59514745]
[1673158188934,0.6297898,16955.0,16954.0,0.00531645]
[1673158190653,0.60656373,16955.0,16954.0,0.00531645]
[1673158202882,0.60656373,16955.0,16954.0,0.00524911]
[1673158208498,1.19635973,16955.0,16954.0,0.00524911]
[1673158209453,1.19635973,16955.0,16954.0,0.00531401]
[1673158210194,1.19635973,16955.0,16954.0,0.00524911]
[1673158211917,1.19635973,16955.0,16954.0,0.00531401]
[1673158212886,1.19635973,16955.0,16954.0,0.00524911]
[1673158213383,1.19635973,16955.0,16954.0,0.00531401]
[1673158213647,1.19635973,16955.0,16954.0,0.00524911]
[1673158215715,1.63622473,16955.0,16954.0,0.00524911]
[1673158217892,1.19635973,16955.0,16954.0,0.00524911]
[1673158218134,1.04642873,16955.0,16954.0,0.00524911]
[1673158218643,0.60656373,16955.0,16954.0,0.00524911]
[1673158219892,0.60656373,16955.0,16954.0,0.00531401]
[1673158220109,0.60656373,16955.0,16954.0,0.00524911]
[1673158220853,1.04642873,16955.0,16954.0,0.00524911]
[1673158222400,1.10520411,16955.0,16954.0,0.00524911]
[1673158222652,1.63613123,16955.0,16954.0,0.00524911]
[1673158222908,1.19626623,16955.0,16954.0,0.00524911]
[1673158223152,1.19626623,16955.0,16954.0,0.00514851]
[1673158223398,1.63613123,16955.0,16954.0,0.00514851]
[1673158223644,1.10520411,16955.0,16954.0,0.00514851]
[1673158224629,1.63618816,16955.0,16954.0,0.00514851]
[1673158225455,1.63618923,16955.0,16954.0,0.00514851]
[1673158225721,1.12843018,16955.0,16954.0,0.00514851]
[1673158225955,0.68856518,16955.0,16954.0,0.00514851]
[1673158231560,0.66533911,16955.0,16954.0,0.00514851]
[1673158237295,0.66533911,16955.0,16954.0,0.00521341]
[1673158237558,0.66533911,16955.0,16954.0,0.00514851]
[1673158238061,1.19650834,16955.0,16954.0,0.00514851]
[1673158238566,0.66533911,16955.0,16954.0,0.00514851]
[1673158239310,1.19651212,16955.0,16954.0,0.00514851]
[1673158239531,1.19651212,16955.0,16954.0,0.00521341]
[1673158239784,1.19651212,16955.0,16954.0,0.00514851]
[1673158242022,1.19651212,16955.0,16954.0,0.00521341]
[1673158242524,1.19651212,16955.0,16954.0,0.00514851]
[1673158246259,1.19651212,16955.0,16954.0,0.00521341]
[1673158246480,1.21973819,16955.0,16954.0,0.00504371]
[1673158247681,1.19651212,16955.0,16954.0,0.00504371]
[1673158248171,1.19651212,16955.0,16954.0,0.00510861]
[1673158248419,1.19651212,16955.0,16954.0,0.00504371]
[1673158251430,1.10520411,16955.0,16954.0,0.00504371]
[1673158251920,0.66533911,16955.0,16954.0,0.00504371]
[1673158263701,1.10520411,16955.0,16954.0,0.00504371]
[1673158263937,0.66533911,16955.0,16954.0,0.00504371]
[1673158265814,1.10520411,16955.0,16954.0,0.00504371]
[1673158266338,0.66533911,16955.0,16954.0,0.00504371]
[1673158268634,0.68759263,16955.0,16954.0,0.00504371]
[1673158269627,0.66533911,16955.0,16954.0,0.00504371]
[1673158271470,0.66533911,16955.0,16954.0,0.00493599]
[1673158281609,0.68759263,16955.0,16954.0,0.00493599]
[1673158282674,0.66533911,16955.0,16954.0,0.00493599]
[1673158294759,0.66533911,16955.0,16954.0,0.00485118]
[1673158299424,0.66533911,16955.0,16954.0,0.00491608]
[1673158299679,0.66533911,16955.0,16954.0,0.00485118]
[1673158300804,0.66533911,16955.0,16954.0,0.00491608]